[Event "Early-Titled-Tuesday-Blitz-January-30-2024"]
[Site "Chess.com"]
[Date "2024.01.30"]
[Round "10"]
[White "Chessdreamer2020"]
[Black "Onthequiet"]
[Result "0-1"]
[WhiteElo "2545"]
[BlackElo "2434"]
[TimeControl "180+1"]
[EndTime "10:03:02 PST"]
[Termination "Onthequiet won by checkmate"]

1. e4 {[%clk 0:03:00.8]} 1... c6 {[%clk 0:02:56.1]} 2. d4 {[%clk 0:03:00.5]}
2... d5 {[%clk 0:02:56.4]} 3. exd5 {[%clk 0:03:01.4]} 3... cxd5 {[%clk
0:02:55.9]} 4. Bd3 {[%clk 0:03:01.1]} 4... Nf6 {[%clk 0:02:56.3]} 5. h3 {[%clk
0:03:01.1]} 5... Nc6 {[%clk 0:02:56.7]} 6. c3 {[%clk 0:03:01.2]} 6... g6 {[%clk
0:02:57.1]} 7. Nf3 {[%clk 0:03:01.4]} 7... Bg7 {[%clk 0:02:56.5]} 8. O-O {[%clk
0:03:01]} 8... O-O {[%clk 0:02:55.7]} 9. Re1 {[%clk 0:03:01.1]} 9... Bf5 {[%clk
0:02:55.3]} 10. Be2 {[%clk 0:03:01.3]} 10... a6 {[%clk 0:02:50]} 11. Bf4 {[%clk
0:03:00.9]} 11... Rc8 {[%clk 0:02:49.6]} 12. Bf1 {[%clk 0:03:01]} 12... h6
{[%clk 0:02:13.4]} 13. Nbd2 {[%clk 0:03:00.2]} 13... g5 {[%clk 0:02:13.4]} 14.
Bg3 {[%clk 0:02:57.8]} 14... e6 {[%clk 0:02:10.4]} 15. Ne5 {[%clk 0:02:57.6]}
15... Nxe5 {[%clk 0:02:09.4]} 16. Bxe5 {[%clk 0:02:58.5]} 16... Nd7 {[%clk
0:02:08.9]} 17. Bxg7 {[%clk 0:02:58.4]} 17... Kxg7 {[%clk 0:02:09.3]} 18. Nf3
{[%clk 0:02:58.8]} 18... Bg6 {[%clk 0:02:08.5]} 19. Bd3 {[%clk 0:02:59.1]} 19...
Bxd3 {[%clk 0:01:57.5]} 20. Qxd3 {[%clk 0:03:00]} 20... Qf6 {[%clk 0:01:57.4]}
21. Nh2 {[%clk 0:02:57.9]} 21... Qg6 {[%clk 0:01:55.9]} 22. Qg3 {[%clk 0:02:57]}
22... Nf6 {[%clk 0:01:54.2]} 23. Qe5 {[%clk 0:02:54.8]} 23... Kh7 {[%clk
0:01:53.4]} 24. Ng4 {[%clk 0:02:48.7]} 24... Nxg4 {[%clk 0:01:49.4]} 25. hxg4
{[%clk 0:02:49.6]} 25... Qg7 {[%clk 0:01:47.8]} 26. Qd6 {[%clk 0:02:45.5]} 26...
Qf6 {[%clk 0:01:43.7]} 27. Re3 {[%clk 0:02:39.1]} 27... Rfd8 {[%clk 0:01:41.8]}
28. Qh2 {[%clk 0:02:38.2]} 28... Qg6 {[%clk 0:01:37.1]} 29. Rae1 {[%clk
0:02:35.9]} 29... b5 {[%clk 0:01:34.5]} 30. a3 {[%clk 0:02:35.6]} 30... a5
{[%clk 0:01:34]} 31. Rf3 {[%clk 0:02:23]} 31... b4 {[%clk 0:01:31.8]} 32. axb4
{[%clk 0:02:23.1]} 32... axb4 {[%clk 0:01:31.3]} 33. Qe5 {[%clk 0:02:24]} 33...
Qg7 {[%clk 0:01:28.7]} 34. Qe3 {[%clk 0:01:55.9]} 34... bxc3 {[%clk 0:01:26.6]}
35. bxc3 {[%clk 0:01:56.8]} 35... Rd7 {[%clk 0:01:25.8]} 36. Rb1 {[%clk
0:01:52.3]} 36... Rdc7 {[%clk 0:01:25.3]} 37. Rb3 {[%clk 0:01:52.5]} 37... Qg6
{[%clk 0:01:22.8]} 38. Qd2 {[%clk 0:01:47.7]} 38... Qe4 {[%clk 0:01:17.9]} 39.
Rg3 {[%clk 0:01:33.5]} 39... Ra8 {[%clk 0:01:12.5]} 40. Kh2 {[%clk 0:01:14]}
40... Rca7 {[%clk 0:01:05.3]} 41. Qd3 {[%clk 0:00:59.9]} 41... Qg6 {[%clk
0:00:56.5]} 42. Rf3 {[%clk 0:00:58.3]} 42... Kg7 {[%clk 0:00:55]} 43. Qe3 {[%clk
0:00:58]} 43... Qe4 {[%clk 0:00:41.9]} 44. Qxe4 {[%clk 0:00:56]} 44... dxe4
{[%clk 0:00:42.5]} 45. Re3 {[%clk 0:00:56.9]} 45... f5 {[%clk 0:00:42.1]} 46.
gxf5 {[%clk 0:00:57.8]} 46... exf5 {[%clk 0:00:42.6]} 47. g4 {[%clk 0:00:58.7]}
47... fxg4 {[%clk 0:00:24.1]} 48. Rxe4 {[%clk 0:00:58.6]} 48... h5 {[%clk
0:00:24.7]} 49. Re5 {[%clk 0:00:55.5]} 49... Ra5 {[%clk 0:00:24.5]} 50. Re7+
{[%clk 0:00:54.4]} 50... Kf6 {[%clk 0:00:23.8]} 51. Rbb7 {[%clk 0:00:53.1]}
51... Rf8 {[%clk 0:00:19.4]} 52. Kg2 {[%clk 0:00:50]} 52... Ra2 {[%clk
0:00:18.9]} 53. d5 {[%clk 0:00:31.1]} 53... Rd2 {[%clk 0:00:14.4]} 54. c4 {[%clk
0:00:30.8]} 54... h4 {[%clk 0:00:14.6]} 55. Re6+ {[%clk 0:00:29.9]} 55... Kf5
{[%clk 0:00:14.1]} 56. Rbe7 {[%clk 0:00:26.9]} 56... g3 {[%clk 0:00:13.5]} 57.
Re5+ {[%clk 0:00:26.4]} 57... Kg4 {[%clk 0:00:13.6]} 58. Re4+ {[%clk 0:00:24]}
58... Kh5 {[%clk 0:00:13.1]} 59. Re2 {[%clk 0:00:17.9]} 59... Rxf2+ {[%clk
0:00:12.6]} 60. Rxf2 {[%clk 0:00:18.4]} 60... Rxf2+ {[%clk 0:00:13.2]} 61. Kg1
{[%clk 0:00:19.3]} 61... Rd2 {[%clk 0:00:12.9]} 62. Re3 {[%clk 0:00:17.3]} 62...
Kg4 {[%clk 0:00:13]} 63. Rc3 {[%clk 0:00:01.9]} 63... h3 {[%clk 0:00:11.8]} 64.
c5 {[%clk 0:00:01.7]} 64... Rd1# {[%clk 0:00:11.5]} 0-1

[Event "Early-Titled-Tuesday-Blitz-January-30-2024"]
[Site "Chess.com"]
[Date "2024.01.30"]
[Round "10"]
[White "KhazhatulyAlikhan"]
[Black "ChainedDowntohell"]
[Result "1-0"]
[WhiteElo "2418"]
[BlackElo "2561"]
[TimeControl "180+1"]
[EndTime "10:03:08 PST"]
[Termination "KhazhatulyAlikhan won on time"]

1. e4 {[%clk 0:03:00.9]} 1... c5 {[%clk 0:02:59.7]} 2. Nf3 {[%clk 0:03:00.7]}
2... a6 {[%clk 0:02:58.2]} 3. d4 {[%clk 0:03:01.1]} 3... cxd4 {[%clk 0:02:59.1]}
4. Nxd4 {[%clk 0:03:01.9]} 4... Nf6 {[%clk 0:02:54.4]} 5. Nc3 {[%clk 0:03:02.3]}
5... e5 {[%clk 0:02:54.5]} 6. Nf3 {[%clk 0:02:58.2]} 6... Nc6 {[%clk 0:02:44.6]}
7. a3 {[%clk 0:02:54.5]} 7... Bc5 {[%clk 0:02:41.9]} 8. Bc4 {[%clk 0:02:51.8]}
8... d6 {[%clk 0:02:41.1]} 9. h3 {[%clk 0:02:50.6]} 9... Be6 {[%clk 0:02:39.9]}
10. Bd5 {[%clk 0:02:31.7]} 10... h6 {[%clk 0:02:31.8]} 11. O-O {[%clk 0:02:30]}
11... O-O {[%clk 0:02:31.1]} 12. Qd3 {[%clk 0:02:28.5]} 12... Nd4 {[%clk
0:02:21]} 13. Nxd4 {[%clk 0:01:55.8]} 13... exd4 {[%clk 0:02:19.6]} 14. Ne2
{[%clk 0:01:55.7]} 14... Nxd5 {[%clk 0:02:11]} 15. exd5 {[%clk 0:01:55.8]} 15...
Bxd5 {[%clk 0:02:11.6]} 16. Nxd4 {[%clk 0:01:54.5]} 16... Qf6 {[%clk 0:02:01.1]}
17. Be3 {[%clk 0:01:22.8]} 17... Rfe8 {[%clk 0:01:52.9]} 18. Rad1 {[%clk
0:01:17.7]} 18... Be4 {[%clk 0:01:49.9]} 19. Qd2 {[%clk 0:01:07]} 19... Qg6
{[%clk 0:01:39.9]} 20. f3 {[%clk 0:01:07.5]} 20... Bxd4 {[%clk 0:01:28.8]} 21.
Bxd4 {[%clk 0:01:07.4]} 21... Bxc2 {[%clk 0:01:28.4]} 22. Rde1 {[%clk
0:01:07.7]} 22... Bf5 {[%clk 0:01:21.2]} 23. Kh2 {[%clk 0:01:04.5]} 23... Be6
{[%clk 0:01:10.1]} 24. Bc3 {[%clk 0:01:01]} 24... Bc4 {[%clk 0:01:08.1]} 25.
Rxe8+ {[%clk 0:00:58.1]} 25... Rxe8 {[%clk 0:01:09]} 26. Re1 {[%clk 0:00:58.8]}
26... Re6 {[%clk 0:00:53.8]} 27. Qd4 {[%clk 0:00:42.1]} 27... Be2 {[%clk
0:00:43.4]} 28. Qd2 {[%clk 0:00:37.1]} 28... Bb5 {[%clk 0:00:31.9]} 29. Qd4
{[%clk 0:00:34.9]} 29... Rxe1 {[%clk 0:00:28.5]} 30. Bxe1 {[%clk 0:00:35.8]}
30... Qe6 {[%clk 0:00:24.4]} 31. Bc3 {[%clk 0:00:27]} 31... f6 {[%clk
0:00:24.5]} 32. Qd2 {[%clk 0:00:21.6]} 32... Bc6 {[%clk 0:00:22.7]} 33. Bb4
{[%clk 0:00:20.6]} 33... d5 {[%clk 0:00:21.1]} 34. Bc3 {[%clk 0:00:21]} 34...
Qd6+ {[%clk 0:00:20.4]} 35. Kg1 {[%clk 0:00:19.7]} 35... Qc5+ {[%clk 0:00:20.3]}
36. Qd4 {[%clk 0:00:19.7]} 36... Qe7 {[%clk 0:00:20.6]} 37. Kf2 {[%clk
0:00:19.4]} 37... Qe6 {[%clk 0:00:20.8]} 38. Qe3 {[%clk 0:00:19.4]} 38... Qd7
{[%clk 0:00:20.4]} 39. Qd4 {[%clk 0:00:17.5]} 39... Kf7 {[%clk 0:00:21]} 40. Kg1
{[%clk 0:00:17.6]} 40... Qe7 {[%clk 0:00:21.5]} 41. Kf2 {[%clk 0:00:17.7]} 41...
Qd6 {[%clk 0:00:22]} 42. Kg1 {[%clk 0:00:17]} 42... Qd7 {[%clk 0:00:22.4]} 43.
Kf2 {[%clk 0:00:17]} 43... Qe7 {[%clk 0:00:23.1]} 44. Qe3 {[%clk 0:00:16.9]}
44... Qc7 {[%clk 0:00:22.4]} 45. Kg1 {[%clk 0:00:15.8]} 45... Qd6 {[%clk
0:00:22.3]} 46. Qd4 {[%clk 0:00:14]} 46... Bd7 {[%clk 0:00:22.6]} 47. Qe3 {[%clk
0:00:12.7]} 47... Qc6 {[%clk 0:00:22.3]} 48. Kf2 {[%clk 0:00:11.4]} 48... Be6
{[%clk 0:00:22.7]} 49. Kg1 {[%clk 0:00:11.6]} 49... Bf5 {[%clk 0:00:23.3]} 50.
Kf2 {[%clk 0:00:11.6]} 50... Qb5 {[%clk 0:00:22.5]} 51. Qe2 {[%clk 0:00:09.7]}
51... Bd3 {[%clk 0:00:21.5]} 52. Qe3 {[%clk 0:00:10.3]} 52... Bc4 {[%clk
0:00:20]} 53. Qf4 {[%clk 0:00:08.5]} 53... Qd7 {[%clk 0:00:19.1]} 54. Qe3 {[%clk
0:00:08.7]} 54... Bb5 {[%clk 0:00:18.6]} 55. Qb6 {[%clk 0:00:08.8]} 55... Qe7
{[%clk 0:00:16.4]} 56. Qe3 {[%clk 0:00:09.3]} 56... Qd6 {[%clk 0:00:16.2]} 57.
Kg1 {[%clk 0:00:08.7]} 57... Qc6 {[%clk 0:00:15.6]} 58. Qd4 {[%clk 0:00:06]}
58... Qe6 {[%clk 0:00:13.7]} 59. Qd2 {[%clk 0:00:05]} 59... Bc4 {[%clk
0:00:11.8]} 60. Kf2 {[%clk 0:00:05.2]} 60... Qf5 {[%clk 0:00:09.9]} 61. Kg1
{[%clk 0:00:04.3]} 61... Qb1+ {[%clk 0:00:10.1]} 62. Kf2 {[%clk 0:00:04.5]}
62... Qf1+ {[%clk 0:00:10]} 63. Kg3 {[%clk 0:00:05.2]} 63... Qb1 {[%clk
0:00:07]} 64. Qf4 {[%clk 0:00:05.3]} 64... Qd1 {[%clk 0:00:04.1]} 65. Qc7+
{[%clk 0:00:05.2]} 65... Kg6 {[%clk 0:00:04.6]} 66. Qxb7 {[%clk 0:00:04.9]}
66... Qc2 {[%clk 0:00:01.9]} 67. Qc8 {[%clk 0:00:04.8]} 67... Bf1 {[%clk
0:00:01.5]} 68. Qg4+ {[%clk 0:00:05.2]} 68... Kh7 {[%clk 0:00:02.1]} 69. Kh2
{[%clk 0:00:05.1]} 1-0

[Event "Early-Titled-Tuesday-Blitz-January-30-2024"]
[Site "Chess.com"]
[Date "2024.01.30"]
[Round "10"]
[White "bancsoo"]
[Black "PepeCuenca"]
[Result "0-1"]
[WhiteElo "2794"]
[BlackElo "2674"]
[TimeControl "180+1"]
[EndTime "10:03:18 PST"]
[Termination "PepeCuenca won on time"]

1. d4 {[%clk 0:03:00.9]} 1... d5 {[%clk 0:02:56.9]} 2. Nf3 {[%clk 0:03:01.2]}
2... Nf6 {[%clk 0:02:56.5]} 3. g3 {[%clk 0:03:01.7]} 3... e6 {[%clk 0:02:55.3]}
4. Bg2 {[%clk 0:03:01.9]} 4... Be7 {[%clk 0:02:55.9]} 5. O-O {[%clk 0:03:00.3]}
5... O-O {[%clk 0:02:56.1]} 6. c4 {[%clk 0:03:01.1]} 6... dxc4 {[%clk 0:02:57]}
7. Qa4 {[%clk 0:03:01.1]} 7... a6 {[%clk 0:02:55.6]} 8. Qxc4 {[%clk 0:03:01.1]}
8... b5 {[%clk 0:02:55.9]} 9. Qc2 {[%clk 0:03:01.9]} 9... Bb7 {[%clk 0:02:56.4]}
10. Bd2 {[%clk 0:03:02.1]} 10... Be4 {[%clk 0:02:55.8]} 11. Qc1 {[%clk
0:03:02.2]} 11... c6 {[%clk 0:02:47.7]} 12. a4 {[%clk 0:02:57.1]} 12... b4
{[%clk 0:02:47.1]} 13. Be3 {[%clk 0:02:53.9]} 13... Nbd7 {[%clk 0:02:43.6]} 14.
Nbd2 {[%clk 0:02:53.9]} 14... Bd5 {[%clk 0:02:44.2]} 15. Ne5 {[%clk 0:02:32.2]}
15... Bxg2 {[%clk 0:02:37.9]} 16. Kxg2 {[%clk 0:02:32.7]} 16... Nxe5 {[%clk
0:02:38.2]} 17. dxe5 {[%clk 0:02:33.2]} 17... Ng4 {[%clk 0:02:17.2]} 18. Nc4
{[%clk 0:02:14.6]} 18... Qd5+ {[%clk 0:02:16.6]} 19. Kg1 {[%clk 0:02:10.2]}
19... Nxe3 {[%clk 0:02:11.7]} 20. fxe3 {[%clk 0:02:09]} 20... Bg5 {[%clk
0:01:56.9]} 21. Qc2 {[%clk 0:02:05.8]} 21... Qc5 {[%clk 0:01:38.5]} 22. Qe4
{[%clk 0:01:59.4]} 22... Rad8 {[%clk 0:01:33.8]} 23. Rad1 {[%clk 0:01:55]} 23...
Rd5 {[%clk 0:01:29.8]} 24. b3 {[%clk 0:01:52.5]} 24... Rfd8 {[%clk 0:01:27.9]}
25. Rd3 {[%clk 0:01:49.8]} 25... Bh6 {[%clk 0:01:00]} 26. Kg2 {[%clk 0:01:46]}
26... Rxd3 {[%clk 0:00:56.6]} 27. exd3 {[%clk 0:01:46.2]} 27... Qd5 {[%clk
0:00:57]} 28. Qxd5 {[%clk 0:00:34.9]} 28... cxd5 {[%clk 0:00:56.5]} 29. Nd6
{[%clk 0:00:35.6]} 29... Bxe3 {[%clk 0:00:36.2]} 30. Nxf7 {[%clk 0:00:26.2]}
30... Rd7 {[%clk 0:00:28]} 31. Rf3 {[%clk 0:00:13.6]} 31... Bd4 {[%clk
0:00:21.8]} 32. Ng5 {[%clk 0:00:13.5]} 32... Re7 {[%clk 0:00:21]} 33. Rf1 {[%clk
0:00:14]} 33... Bxe5 {[%clk 0:00:19.4]} 34. Nf3 {[%clk 0:00:14.1]} 34... Bc3
{[%clk 0:00:19]} 35. Rf2 {[%clk 0:00:14.6]} 35... h6 {[%clk 0:00:18.7]} 36. Re2
{[%clk 0:00:14.6]} 36... e5 {[%clk 0:00:17.2]} 37. h4 {[%clk 0:00:11.2]} 37...
Kf7 {[%clk 0:00:16.3]} 38. h5 {[%clk 0:00:11]} 38... Kf6 {[%clk 0:00:10.1]} 39.
g4 {[%clk 0:00:08.7]} 39... e4 {[%clk 0:00:10]} 40. dxe4 {[%clk 0:00:08.9]}
40... Rxe4 {[%clk 0:00:09.5]} 41. Rxe4 {[%clk 0:00:08.4]} 41... dxe4 {[%clk
0:00:09.9]} 42. Nh4 {[%clk 0:00:08.3]} 42... Kg5 {[%clk 0:00:10.5]} 43. Kh3
{[%clk 0:00:05.9]} 43... e3 {[%clk 0:00:11]} 44. Nf3+ {[%clk 0:00:01.7]} 44...
Kf4 {[%clk 0:00:11]} 45. Ng1 {[%clk 0:00:02.6]} 45... Ke4 {[%clk 0:00:08.8]} 46.
Kg2 {[%clk 0:00:02.7]} 46... Kd3 {[%clk 0:00:07.5]} 47. Kf3 {[%clk 0:00:03]}
47... Bd4 {[%clk 0:00:06]} 48. Ne2 {[%clk 0:00:03.2]} 48... Ba7 {[%clk 0:00:06]}
49. Nf4+ {[%clk 0:00:03.3]} 49... Kc2 {[%clk 0:00:06.1]} 50. Ne6 {[%clk
0:00:03.1]} 50... Kxb3 {[%clk 0:00:03.9]} 51. Nxg7 {[%clk 0:00:03.8]} 51... Kxa4
{[%clk 0:00:03.9]} 52. g5 {[%clk 0:00:04.5]} 52... b3 {[%clk 0:00:03.4]} 53.
gxh6 {[%clk 0:00:04.6]} 53... b2 {[%clk 0:00:04.1]} 54. h7 {[%clk 0:00:04.2]}
54... b1=Q {[%clk 0:00:04.8]} 55. h8=Q {[%clk 0:00:04.7]} 55... Qf1+ {[%clk
0:00:04.6]} 56. Ke4 {[%clk 0:00:05.1]} 56... Qc4+ {[%clk 0:00:02.1]} 57. Kf3
{[%clk 0:00:05.1]} 57... Qf1+ {[%clk 0:00:02.1]} 58. Ke4 {[%clk 0:00:05.5]}
58... Qf2 {[%clk 0:00:02.4]} 59. Qe8+ {[%clk 0:00:05.5]} 59... Kb4 {[%clk
0:00:02.5]} 60. Qe7+ {[%clk 0:00:05.5]} 60... Kb3 {[%clk 0:00:02.4]} 61. Qxa7
{[%clk 0:00:05.8]} 61... Qc2+ {[%clk 0:00:02.3]} 62. Kxe3 {[%clk 0:00:05.7]}
62... Qc3+ {[%clk 0:00:01.8]} 63. Ke4 {[%clk 0:00:05.6]} 63... Qc2+ {[%clk
0:00:01.9]} 64. Kf4 {[%clk 0:00:05.7]} 64... Qd2+ {[%clk 0:00:02]} 65. Kg4
{[%clk 0:00:05.9]} 65... Qg2+ {[%clk 0:00:02.4]} 66. Kf5 {[%clk 0:00:06.3]}
66... Qf3+ {[%clk 0:00:02.6]} 67. Kg6 {[%clk 0:00:06.8]} 67... Qe4+ {[%clk
0:00:02.8]} 68. Kf6 {[%clk 0:00:06]} 68... Qf4+ {[%clk 0:00:02.6]} 69. Nf5
{[%clk 0:00:05.8]} 69... a5 {[%clk 0:00:01.1]} 70. Qe3+ {[%clk 0:00:05.2]} 70...
Qxe3 {[%clk 0:00:01.1]} 71. Nxe3 {[%clk 0:00:05.6]} 71... a4 {[%clk 0:00:02]}
0-1

[Event "Early-Titled-Tuesday-Blitz-January-30-2024"]
[Site "Chess.com"]
[Date "2024.01.30"]
[Round "10"]
[White "wonderfultime"]
[Black "FairChess_on_YouTube"]
[Result "1/2-1/2"]
[WhiteElo "3016"]
[BlackElo "3095"]
[TimeControl "180+1"]
[EndTime "10:03:19 PST"]
[Termination "Game drawn by repetition"]

1. d4 {[%clk 0:03:00.9]} 1... Nf6 {[%clk 0:02:58.2]} 2. Nf3 {[%clk 0:03:01]}
2... d6 {[%clk 0:02:51.4]} 3. c4 {[%clk 0:02:56.5]} 3... g6 {[%clk 0:02:50.4]}
4. g3 {[%clk 0:02:57]} 4... Bg7 {[%clk 0:02:49.5]} 5. Bg2 {[%clk 0:02:57.6]}
5... O-O {[%clk 0:02:50.1]} 6. O-O {[%clk 0:02:58.4]} 6... c6 {[%clk 0:02:50.7]}
7. Nc3 {[%clk 0:02:54.7]} 7... Bf5 {[%clk 0:02:50.4]} 8. Re1 {[%clk 0:02:52.7]}
8... Ne4 {[%clk 0:02:47.9]} 9. Qb3 {[%clk 0:02:51.6]} 9... Nxc3 {[%clk
0:02:45.4]} 10. bxc3 {[%clk 0:02:51.5]} 10... Bc8 {[%clk 0:02:43.2]} 11. e4
{[%clk 0:02:49.6]} 11... Nd7 {[%clk 0:02:40.6]} 12. Ba3 {[%clk 0:02:41.2]} 12...
Re8 {[%clk 0:02:28.2]} 13. Rad1 {[%clk 0:02:36.6]} 13... Qc7 {[%clk 0:02:28.4]}
14. c5 {[%clk 0:01:41.3]} 14... dxc5 {[%clk 0:02:26.2]} 15. Ng5 {[%clk
0:01:41.7]} 15... e6 {[%clk 0:02:10.1]} 16. e5 {[%clk 0:01:39.7]} 16... b6
{[%clk 0:01:55.1]} 17. Ne4 {[%clk 0:01:32.9]} 17... Ba6 {[%clk 0:01:53.6]} 18.
Nd6 {[%clk 0:01:30.9]} 18... Rf8 {[%clk 0:01:49]} 19. Qa4 {[%clk 0:01:30.6]}
19... Bb5 {[%clk 0:01:48.2]} 20. Nxb5 {[%clk 0:01:29.2]} 20... cxb5 {[%clk
0:01:49.1]} 21. Qxb5 {[%clk 0:01:30.1]} 21... Rac8 {[%clk 0:01:46]} 22. f4
{[%clk 0:01:29.6]} 22... Rfe8 {[%clk 0:01:27.1]} 23. d5 {[%clk 0:01:28.8]} 23...
exd5 {[%clk 0:01:27.3]} 24. Bxd5 {[%clk 0:01:29.4]} 24... Nf8 {[%clk 0:01:27.3]}
25. c4 {[%clk 0:01:17.1]} 25... Rcd8 {[%clk 0:01:19.5]} 26. Bb2 {[%clk
0:01:15.7]} 26... Ne6 {[%clk 0:01:13.7]} 27. Rd2 {[%clk 0:01:08.9]} 27... Bf8
{[%clk 0:01:07.4]} 28. Kg2 {[%clk 0:00:58.6]} 28... Nd4 {[%clk 0:01:00.5]} 29.
Bxd4 {[%clk 0:00:58.2]} 29... cxd4 {[%clk 0:01:00.9]} 30. Rxd4 {[%clk
0:00:56.1]} 30... Qc5 {[%clk 0:00:56.2]} 31. Rdd1 {[%clk 0:00:46]} 31... Qxb5
{[%clk 0:00:46.3]} 32. cxb5 {[%clk 0:00:46.9]} 32... Bb4 {[%clk 0:00:44.9]} 33.
Rf1 {[%clk 0:00:45.5]} 33... Kg7 {[%clk 0:00:40.8]} 34. Kf3 {[%clk 0:00:44.8]}
34... Bc5 {[%clk 0:00:38.5]} 35. Bc6 {[%clk 0:00:37.4]} 35... Rf8 {[%clk
0:00:35.2]} 36. Bd7 {[%clk 0:00:36.8]} 36... Ra8 {[%clk 0:00:33.5]} 37. g4
{[%clk 0:00:31.4]} 37... a6 {[%clk 0:00:30.4]} 38. a4 {[%clk 0:00:31.8]} 38...
axb5 {[%clk 0:00:30.3]} 39. Bxb5 {[%clk 0:00:32.7]} 39... Rad8 {[%clk
0:00:21.9]} 40. f5 {[%clk 0:00:32.8]} 40... f6 {[%clk 0:00:21.1]} 41. e6 {[%clk
0:00:31]} 41... Kh6 {[%clk 0:00:19.8]} 42. h4 {[%clk 0:00:30.5]} 42... gxf5
{[%clk 0:00:18.3]} 43. gxf5 {[%clk 0:00:31.4]} 43... Kh5 {[%clk 0:00:18.1]} 44.
Bd7 {[%clk 0:00:31]} 44... Rg8 {[%clk 0:00:13.9]} 45. Rfe1 {[%clk 0:00:30.3]}
45... Be7 {[%clk 0:00:13.8]} 46. Re4 {[%clk 0:00:19.1]} 46... Rg7 {[%clk
0:00:12.8]} 47. Ke3 {[%clk 0:00:16.9]} 47... Rg3+ {[%clk 0:00:11.6]} 48. Kd4
{[%clk 0:00:14.6]} 48... Rf3 {[%clk 0:00:11.4]} 49. Kd5 {[%clk 0:00:09.9]} 49...
Rxf5+ {[%clk 0:00:08.2]} 50. Kc6 {[%clk 0:00:10.6]} 50... Rc5+ {[%clk
0:00:08.5]} 51. Kb7 {[%clk 0:00:09.7]} 51... f5 {[%clk 0:00:05.6]} 52. Rf4
{[%clk 0:00:10.2]} 52... Rf8 {[%clk 0:00:03.9]} 53. Rdf1 {[%clk 0:00:08]} 53...
Re5 {[%clk 0:00:03.9]} 54. Kxb6 {[%clk 0:00:06.1]} 54... Rc5 {[%clk 0:00:04.2]}
55. Bc6 {[%clk 0:00:04.6]} 55... Bd6 {[%clk 0:00:03.1]} 56. R4f3 {[%clk
0:00:04.7]} 56... Rb8+ {[%clk 0:00:03.7]} 57. Bb7 {[%clk 0:00:05.1]} 57... Rc7
{[%clk 0:00:04.2]} 58. Rxf5+ {[%clk 0:00:04.8]} 58... Kxh4 {[%clk 0:00:04.8]}
59. Rd5 {[%clk 0:00:03.7]} 59... Rbxb7+ {[%clk 0:00:04.9]} 60. Ka6 {[%clk
0:00:04.4]} 60... Ra7+ {[%clk 0:00:04.9]} 61. Kb6 {[%clk 0:00:04.7]} 61... Rab7+
{[%clk 0:00:05.3]} 62. Ka6 {[%clk 0:00:05.3]} 62... Be7 {[%clk 0:00:05.8]} 63.
Rf7 {[%clk 0:00:04.4]} 63... Ra7+ {[%clk 0:00:06]} 64. Kb6 {[%clk 0:00:05]}
64... Rcb7+ {[%clk 0:00:06.1]} 65. Kc6 {[%clk 0:00:05.5]} 65... Rc7+ {[%clk
0:00:06.6]} 66. Kb6 {[%clk 0:00:05.9]} 66... Kg4 {[%clk 0:00:04.5]} 67. Rd4+
{[%clk 0:00:05.9]} 67... Kg5 {[%clk 0:00:04.3]} 68. Rd5+ {[%clk 0:00:06.6]}
68... Kg6 {[%clk 0:00:04.6]} 69. a5 {[%clk 0:00:07.3]} 69... Rab7+ {[%clk
0:00:03.9]} 70. Ka6 {[%clk 0:00:07.9]} 70... Ra7+ {[%clk 0:00:04.2]} 71. Kb6
{[%clk 0:00:08.5]} 71... Rab7+ {[%clk 0:00:03.6]} 72. Ka6 {[%clk 0:00:09]} 72...
Ra7+ {[%clk 0:00:03.3]} 73. Kb6 {[%clk 0:00:09.7]} 1/2-1/2